[Event "Titled Tuesday Blitz April 4 Early 2023"]
[White "Hajiyev, Kanan"]
[Black "Samarth, J Rao"]
[WhiteFideId "13404148"]
[BlackFideId "46652370"]
[WhiteElo "2103"]
[BlackElo "1564"]
[Result "1-0"]
[Round "04"]
[TimeControl "180+2"]
[Date "2023.04.04"]
[WhiteClock "0:01:26"]
[BlackClock "0:01:11"]

1. d4 {[%clk 0:03:00]}  d5 {[%clk 0:02:55]} 2. c4 {[%clk 0:03:00]}  e6 {[%clk 0:02:55]} 3. cxd5 {[%clk 0:03:01]}  exd5 {[%clk 0:02:55]} 4. Nc3 {[%clk 0:03:02]}  c6 {[%clk 0:02:55]} 5. Qc2 {[%clk 0:03:03]}  Bd6 {[%clk 0:02:54]} 6. Nf3 {[%clk 0:03:01]}  Ne7 {[%clk 0:02:54]} 7. Bg5 {[%clk 0:03:01]}  f6 {[%clk 0:02:55]} 8. Bh4 {[%clk 0:03:01]}  Bf5 {[%clk 0:02:55]} 9. Qd2 {[%clk 0:03:00]}  Na6 {[%clk 0:02:54]} 10. e3 {[%clk 0:03:00]}  O-O {[%clk 0:02:53]} 11. Bg3 {[%clk 0:02:54]}  Nc7 {[%clk 0:02:48]} 12. Bd3 {[%clk 0:02:52]}  Bxd3 {[%clk 0:02:44]} 13. Qxd3 {[%clk 0:02:53]}  Bb4 {[%clk 0:02:44]} 14. O-O {[%clk 0:02:52]}  Ne6 {[%clk 0:02:40]} 15. Ne2 {[%clk 0:02:51]}  Qd7 {[%clk 0:02:39]} 16. a3 {[%clk 0:02:47]}  Ba5 {[%clk 0:02:39]} 17. b4 {[%clk 0:02:48]}  Bd8 {[%clk 0:02:38]} 18. Rfc1 {[%clk 0:02:47]}  a6 {[%clk 0:02:38]} 19. Nf4 {[%clk 0:02:38]}  Nxf4 {[%clk 0:02:34]} 20. Bxf4 {[%clk 0:02:39]}  Qf5 {[%clk 0:02:32]} 21. Qxf5 {[%clk 0:02:39]}  Nxf5 {[%clk 0:02:33]} 22. a4 {[%clk 0:02:37]}  Be7 {[%clk 0:02:33]} 23. Rab1 {[%clk 0:02:33]}  Rfc8 {[%clk 0:02:29]} 24. Kf1 {[%clk 0:02:29]}  h5 {[%clk 0:02:22]} 25. h3 {[%clk 0:02:24]}  Kf7 {[%clk 0:02:14]} 26. g4 {[%clk 0:02:09]}  hxg4 {[%clk 0:02:13]} 27. hxg4 {[%clk 0:02:10]}  Nd6 {[%clk 0:02:14]} 28. Bxd6 {[%clk 0:02:11]}  Bxd6 {[%clk 0:02:15]} 29. Kg2 {[%clk 0:02:09]}  a5 {[%clk 0:02:06]} 30. b5 {[%clk 0:02:00]}  Bb4 {[%clk 0:02:07]} 31. bxc6 {[%clk 0:02:00]}  Rxc6 {[%clk 0:02:04]} 32. Rxc6 {[%clk 0:01:59]}  bxc6 {[%clk 0:02:04]} 33. Rc1 {[%clk 0:02:00]}  Rc8 {[%clk 0:02:01]} 34. Nh4 {[%clk 0:01:53]}  g6 {[%clk 0:01:57]} 35. Nf3 {[%clk 0:01:53]}  Ke6 {[%clk 0:01:56]} 36. g5 {[%clk 0:01:53]}  fxg5 {[%clk 0:01:48]} 37. Nxg5+ {[%clk 0:01:53]}  Kf5 {[%clk 0:01:45]} 38. Nf3 {[%clk 0:01:45]}  Bd6 {[%clk 0:01:41]} 39. Nd2 {[%clk 0:01:39]}  Bb4 {[%clk 0:01:38]} 40. Nb3 {[%clk 0:01:38]}  Ke6 {[%clk 0:01:34]} 41. Nc5+ {[%clk 0:01:35]}  Kd6 {[%clk 0:01:33]} 42. Nd3 {[%clk 0:01:35]}  g5 {[%clk 0:01:26]} 43. Kf3 {[%clk 0:01:32]}  Ke6 {[%clk 0:01:10]} 44. Kg4 {[%clk 0:01:31]}  Kf6 {[%clk 0:01:11]} 45. Ne5 {[%clk 0:01:30]}  c5 {[%clk 0:01:11]} 46. Nd7+ {[%clk 0:01:29]}  Ke6 {[%clk 0:01:11]} 47. Nxc5+ {[%clk 0:01:26]} 1-0


[Site "https://www.chess.com"]

[Event "Titled Tuesday Blitz April 4 Early 2023"]
[White "Baruch, Liam"]
[Black "Chandreyee, Hajra"]
[WhiteFideId "14322064"]
[BlackFideId "5056535"]
[WhiteElo "2154"]
[BlackElo "1725"]
[Result "0-1"]
[Round "04"]
[TimeControl "180+2"]
[Date "2023.04.04"]
[WhiteClock "0:00:06"]
[BlackClock "0:00:31"]

1. e4 {[%clk 0:03:00]}  e6 {[%clk 0:02:59]} 2. d4 {[%clk 0:03:00]}  d5 {[%clk 0:02:58]} 3. Nc3 {[%clk 0:02:58]}  Nf6 {[%clk 0:02:57]} 4. e5 {[%clk 0:02:58]}  Nfd7 {[%clk 0:02:57]} 5. f4 {[%clk 0:02:59]}  c5 {[%clk 0:02:57]} 6. Nf3 {[%clk 0:02:59]}  Nc6 {[%clk 0:02:58]} 7. Be3 {[%clk 0:03:00]}  cxd4 {[%clk 0:02:55]} 8. Nxd4 {[%clk 0:02:59]}  Qb6 {[%clk 0:02:56]} 9. Na4 {[%clk 0:02:43]}  Qa5+ {[%clk 0:02:47]} 10. c3 {[%clk 0:02:43]}  Nxd4 {[%clk 0:02:42]} 11. b4 {[%clk 0:01:56]}  Bxb4 {[%clk 0:02:36]} 12. Bxd4 {[%clk 0:01:49]}  Bc5 {[%clk 0:02:23]} 13. Nxc5 {[%clk 0:01:44]}  Nxc5 {[%clk 0:02:22]} 14. Be2 {[%clk 0:01:38]}  Bd7 {[%clk 0:02:17]} 15. O-O {[%clk 0:01:37]}  Ne4 {[%clk 0:02:15]} 16. Qb3 {[%clk 0:01:22]}  Bc6 {[%clk 0:01:49]} 17. Rfc1 {[%clk 0:01:19]}  O-O {[%clk 0:01:45]} 18. Bd3 {[%clk 0:01:17]}  Qa4 {[%clk 0:01:31]} 19. Qxa4 {[%clk 0:00:55]}  Bxa4 {[%clk 0:01:31]} 20. Rab1 {[%clk 0:00:51]}  Bc6 {[%clk 0:01:26]} 21. Bxe4 {[%clk 0:00:41]}  dxe4 {[%clk 0:01:25]} 22. Kf2 {[%clk 0:00:41]}  f6 {[%clk 0:01:25]} 23. Ke3 {[%clk 0:00:35]}  f5 {[%clk 0:01:19]} 24. h3 {[%clk 0:00:31]}  Rfd8 {[%clk 0:01:13]} 25. Rb4 {[%clk 0:00:30]}  Rd5 {[%clk 0:01:10]} 26. g4 {[%clk 0:00:28]}  Ra5 {[%clk 0:01:07]} 27. Rc2 {[%clk 0:00:24]}  Rd8 {[%clk 0:01:01]} 28. gxf5 {[%clk 0:00:17]}  exf5 {[%clk 0:01:01]} 29. Rg2 {[%clk 0:00:16]}  g6 {[%clk 0:00:59]} 30. h4 {[%clk 0:00:14]}  Kf7 {[%clk 0:00:57]} 31. Rh2 {[%clk 0:00:11]}  h5 {[%clk 0:00:56]} 32. Rhb2 {[%clk 0:00:12]}  b6 {[%clk 0:00:55]} 33. Rg2 {[%clk 0:00:12]}  Bd5 {[%clk 0:00:55]} 34. a4 {[%clk 0:00:11]}  Bc6 {[%clk 0:00:52]} 35. e6+ {[%clk 0:00:11]}  Kxe6 {[%clk 0:00:51]} 36. Rxg6+ {[%clk 0:00:12]}  Kd7 {[%clk 0:00:50]} 37. Rg7+ {[%clk 0:00:09]}  Kc8 {[%clk 0:00:48]} 38. Rc4 {[%clk 0:00:10]}  Rd6 {[%clk 0:00:46]} 39. Be5 {[%clk 0:00:11]}  Rd3+ {[%clk 0:00:41]} 40. Ke2 {[%clk 0:00:09]}  Rc5 {[%clk 0:00:41]} 41. Rg8+ {[%clk 0:00:06]}  Kb7 {[%clk 0:00:39]} 42. Rb8+ {[%clk 0:00:06]}  Ka6 {[%clk 0:00:39]} 43. Rxc5 {[%clk 0:00:06]}  bxc5 {[%clk 0:00:39]} 44. Rc8 {[%clk 0:00:05]}  Bxa4 {[%clk 0:00:37]} 45. Rxc5 {[%clk 0:00:06]}  Bd1+ {[%clk 0:00:32]} 46. Ke1 {[%clk 0:00:06]}  Bg4 {[%clk 0:00:31]} 47. Bd4 {[%clk 0:00:06]}  e3 {[%clk 0:00:31]} 48. Re5 {[%clk 0:00:06]}  Rd1# {[%clk 0:00:31]} 0-1


[Site "https://www.chess.com"]

[Event "Titled Tuesday Blitz April 4 Early 2023"]
[White "Rizzo, Tobias"]
[Black "Necula, Iulian"]
[WhiteFideId "30942691"]
[BlackFideId "1232380"]
[WhiteElo "2413"]
[BlackElo "1790"]
[Result "1-0"]
[Round "04"]
[TimeControl "180+2"]
[Date "2023.04.04"]
[WhiteClock "0:00:41"]
[BlackClock "0:00:49"]

1. d4 {[%clk 0:03:00]}  d6 {[%clk 0:03:00]} 2. e4 {[%clk 0:03:00]}  Nf6 {[%clk 0:03:00]} 3. Nc3 {[%clk 0:03:01]}  e5 {[%clk 0:02:59]} 4. dxe5 {[%clk 0:02:54]}  dxe5 {[%clk 0:03:00]} 5. Qxd8+ {[%clk 0:02:54]}  Kxd8 {[%clk 0:03:01]} 6. Bc4 {[%clk 0:02:53]}  Be6 {[%clk 0:03:01]} 7. Bxe6 {[%clk 0:02:52]}  fxe6 {[%clk 0:03:02]} 8. Nf3 {[%clk 0:02:51]}  Bd6 {[%clk 0:03:02]} 9. Be3 {[%clk 0:02:46]}  Nbd7 {[%clk 0:03:01]} 10. Nd2 {[%clk 0:02:45]}  a6 {[%clk 0:02:59]} 11. f3 {[%clk 0:02:44]}  b5 {[%clk 0:02:57]} 12. Nb3 {[%clk 0:02:42]}  Ke7 {[%clk 0:02:56]} 13. Na5 {[%clk 0:02:41]}  Kf7 {[%clk 0:02:33]} 14. O-O-O {[%clk 0:02:13]}  Bb4 {[%clk 0:02:17]} 15. Nc6 {[%clk 0:02:13]}  Bxc3 {[%clk 0:02:17]} 16. bxc3 {[%clk 0:02:14]}  h6 {[%clk 0:02:08]} 17. g4 {[%clk 0:02:08]}  g5 {[%clk 0:02:07]} 18. h4 {[%clk 0:02:08]}  Rhg8 {[%clk 0:02:02]} 19. hxg5 {[%clk 0:02:06]}  hxg5 {[%clk 0:02:02]} 20. Rh6 {[%clk 0:02:00]}  Rg6 {[%clk 0:01:42]} 21. Rh2 {[%clk 0:01:30]}  Rag8 {[%clk 0:01:37]} 22. Rhd2 {[%clk 0:01:24]}  Ke8 {[%clk 0:01:17]} 23. Nb4 {[%clk 0:01:01]}  a5 {[%clk 0:01:10]} 24. Nc6 {[%clk 0:01:00]}  a4 {[%clk 0:01:09]} 25. Rh1 {[%clk 0:00:55]}  Kf7 {[%clk 0:01:05]} 26. Kb2 {[%clk 0:00:44]}  Nb6 {[%clk 0:00:53]} 27. Bxb6 {[%clk 0:00:44]}  cxb6 {[%clk 0:00:53]} 28. Nxe5+ {[%clk 0:00:45]}  Ke7 {[%clk 0:00:53]} 29. Nxg6+ {[%clk 0:00:45]}  Rxg6 {[%clk 0:00:53]} 30. Ka3 {[%clk 0:00:42]}  Nd7 {[%clk 0:00:49]} 31. Rh7+ {[%clk 0:00:41]} 1-0


[Site "https://www.chess.com"]

[Event "Titled Tuesday Blitz April 4 Early 2023"]
[White "Rios Escobar, Adan"]
[Black "Maluco_do_Natal_00"]
[WhiteFideId "3403645"]
[WhiteElo "2411"]
[BlackElo "2004"]
[Result "1-0"]
[Round "04"]
[TimeControl "180+2"]
[Date "2023.04.04"]
[WhiteClock "0:00:28"]
[BlackClock "0:00:01"]

1. d4 {[%clk 0:03:00]}  d5 {[%clk 0:02:58]} 2. g3 {[%clk 0:03:01]}  Nf6 {[%clk 0:02:57]} 3. Bg2 {[%clk 0:03:01]}  e6 {[%clk 0:02:58]} 4. Nf3 {[%clk 0:03:01]}  c5 {[%clk 0:02:58]} 5. O-O {[%clk 0:03:00]}  Nc6 {[%clk 0:02:58]} 6. c4 {[%clk 0:02:59]}  Be7 {[%clk 0:02:43]} 7. cxd5 {[%clk 0:02:59]}  exd5 {[%clk 0:02:41]} 8. dxc5 {[%clk 0:02:59]}  Bxc5 {[%clk 0:02:41]} 9. a3 {[%clk 0:03:00]}  O-O {[%clk 0:02:36]} 10. b4 {[%clk 0:03:00]}  Be7 {[%clk 0:02:36]} 11. Bb2 {[%clk 0:03:00]}  h6 {[%clk 0:02:27]} 12. Nc3 {[%clk 0:03:00]}  Be6 {[%clk 0:02:26]} 13. Rc1 {[%clk 0:03:00]}  Rc8 {[%clk 0:02:26]} 14. Qd3 {[%clk 0:02:49]}  a6 {[%clk 0:02:22]} 15. Rfd1 {[%clk 0:02:48]}  b5 {[%clk 0:01:47]} 16. e3 {[%clk 0:02:39]}  Qb6 {[%clk 0:01:25]} 17. Ne2 {[%clk 0:02:36]}  Rfd8 {[%clk 0:00:51]} 18. Nf4 {[%clk 0:02:35]}  Ne4 {[%clk 0:00:20]} 19. Nxe6 {[%clk 0:02:28]}  fxe6 {[%clk 0:00:20]} 20. Bh3 {[%clk 0:02:28]}  Nb8 {[%clk 0:00:12]} 21. Rxc8 {[%clk 0:02:21]}  Rxc8 {[%clk 0:00:12]} 22. Nd4 {[%clk 0:02:21]}  Kh8 {[%clk 0:00:04]} 23. Bxe6 {[%clk 0:02:16]}  Rd8 {[%clk 0:00:03]} 24. Bh3 {[%clk 0:01:42]}  Nf6 {[%clk 0:00:03]} 25. Nf5 {[%clk 0:01:34]}  Bf8 {[%clk 0:00:02]} 26. Bd4 {[%clk 0:01:10]}  Qe6 {[%clk 0:00:02]} 27. Kg2 {[%clk 0:00:34]}  Qf7 {[%clk 0:00:02]} 28. Nh4 {[%clk 0:00:31]}  Kg8 {[%clk 0:00:01]} 29. Bf5 {[%clk 0:00:28]} 1-0


[Site "https://www.chess.com"]

[Event "Titled Tuesday Blitz April 4 Early 2023"]
[White "Shuvalov, Evgenij"]
[Black "Kujawski, Adam"]
[WhiteFideId "4187237"]
[BlackFideId "1100920"]
[WhiteElo "2080"]
[BlackElo "2054"]
[Result "1-0"]
[Round "04"]
[TimeControl "180+2"]
[Date "2023.04.04"]
[WhiteClock "0:01:40"]
[BlackClock "0:00:20"]

1. d4 {[%clk 0:03:00]}  Nf6 {[%clk 0:02:59]} 2. c4 {[%clk 0:03:00]}  e6 {[%clk 0:02:59]} 3. Nc3 {[%clk 0:03:00]}  Bb4 {[%clk 0:02:59]} 4. f3 {[%clk 0:03:00]}  d5 {[%clk 0:02:59]} 5. a3 {[%clk 0:02:58]}  Bxc3+ {[%clk 0:02:58]} 6. bxc3 {[%clk 0:02:59]}  O-O {[%clk 0:02:58]} 7. cxd5 {[%clk 0:02:57]}  exd5 {[%clk 0:02:58]} 8. e3 {[%clk 0:02:57]}  Re8 {[%clk 0:02:57]} 9. Bd3 {[%clk 0:02:57]}  c5 {[%clk 0:02:56]} 10. Ne2 {[%clk 0:02:57]}  b6 {[%clk 0:02:54]} 11. O-O {[%clk 0:02:56]}  Ba6 {[%clk 0:02:55]} 12. Ng3 {[%clk 0:02:49]}  Bxd3 {[%clk 0:02:54]} 13. Qxd3 {[%clk 0:02:50]}  Nc6 {[%clk 0:02:54]} 14. Bb2 {[%clk 0:02:48]}  g6 {[%clk 0:02:51]} 15. e4 {[%clk 0:02:45]}  dxe4 {[%clk 0:02:49]} 16. fxe4 {[%clk 0:02:46]}  Ne5 {[%clk 0:02:47]} 17. Qe2 {[%clk 0:02:45]}  Neg4 {[%clk 0:02:36]} 18. e5 {[%clk 0:02:37]}  h5 {[%clk 0:02:31]} 19. h3 {[%clk 0:02:34]}  h4 {[%clk 0:02:21]} 20. Ne4 {[%clk 0:02:20]}  Nxe4 {[%clk 0:02:18]} 21. Qxg4 {[%clk 0:02:20]}  Ng3 {[%clk 0:02:06]} 22. Rf6 {[%clk 0:02:15]}  cxd4 {[%clk 0:01:49]} 23. cxd4 {[%clk 0:02:14]}  Qc8 {[%clk 0:01:48]} 24. Qxh4 {[%clk 0:02:12]}  Ne2+ {[%clk 0:01:34]} 25. Kh2 {[%clk 0:02:02]}  Qc2 {[%clk 0:01:33]} 26. Raf1 {[%clk 0:01:58]}  Re7 {[%clk 0:01:28]} 27. Ba1 {[%clk 0:01:55]}  Kg7 {[%clk 0:01:15]} 28. d5 {[%clk 0:01:54]}  Rh8 {[%clk 0:01:12]} 29. Rxg6+ {[%clk 0:01:47]}  fxg6 {[%clk 0:00:20]} 30. e6+ {[%clk 0:01:45]}  Nc3 {[%clk 0:00:20]} 31. Qxe7+ {[%clk 0:01:43]}  Kh6 {[%clk 0:00:20]} 32. Qh4+ {[%clk 0:01:42]}  Kg7 {[%clk 0:00:20]} 33. Rf7+ {[%clk 0:01:41]}  Kg8 {[%clk 0:00:20]} 34. Qd8# {[%clk 0:01:40]} 1-0


[Site "https://www.chess.com"]

[Event "Titled Tuesday Blitz April 4 Early 2023"]
[White "ibove"]
[Black "Dudzinski, Pawel"]
[BlackFideId "1117890"]
[WhiteElo "2312"]
[BlackElo "2099"]
[Result "1/2-1/2"]
[Round "04"]
[TimeControl "180+2"]
[Date "2023.04.04"]
[WhiteClock "0:00:25"]
[BlackClock "0:00:04"]

1. d4 {[%clk 0:02:59]}  d5 {[%clk 0:02:57]} 2. Nf3 {[%clk 0:03:00]}  c6 {[%clk 0:02:57]} 3. Bf4 {[%clk 0:02:59]}  e6 {[%clk 0:02:58]} 4. e3 {[%clk 0:02:59]}  f5 {[%clk 0:02:58]} 5. Nbd2 {[%clk 0:02:58]}  Nf6 {[%clk 0:02:59]} 6. c4 {[%clk 0:02:58]}  Be7 {[%clk 0:02:59]} 7. cxd5 {[%clk 0:02:59]}  cxd5 {[%clk 0:02:59]} 8. Bd3 {[%clk 0:02:59]}  Nc6 {[%clk 0:02:59]} 9. a3 {[%clk 0:02:59]}  O-O {[%clk 0:03:00]} 10. O-O {[%clk 0:02:57]}  Ne4 {[%clk 0:03:00]} 11. Bxe4 {[%clk 0:02:56]}  fxe4 {[%clk 0:03:00]} 12. Ne5 {[%clk 0:02:57]}  Nxe5 {[%clk 0:03:00]} 13. Bxe5 {[%clk 0:02:57]}  Bd6 {[%clk 0:03:00]} 14. Bxd6 {[%clk 0:02:51]}  Qxd6 {[%clk 0:03:01]} 15. Rc1 {[%clk 0:02:48]}  e5 {[%clk 0:02:58]} 16. Nb3 {[%clk 0:02:46]}  Bd7 {[%clk 0:02:49]} 17. dxe5 {[%clk 0:02:44]}  Qxe5 {[%clk 0:02:50]} 18. Qd4 {[%clk 0:02:44]}  Qxd4 {[%clk 0:02:38]} 19. Nxd4 {[%clk 0:02:45]}  Rac8 {[%clk 0:02:38]} 20. Rfd1 {[%clk 0:02:40]}  Kf7 {[%clk 0:02:37]} 21. Kf1 {[%clk 0:02:37]}  Kf6 {[%clk 0:02:35]} 22. Ke2 {[%clk 0:02:37]}  Ke5 {[%clk 0:02:32]} 23. f4+ {[%clk 0:02:33]}  exf3+ {[%clk 0:02:27]} 24. gxf3 {[%clk 0:02:34]}  g5 {[%clk 0:02:21]} 25. Rxc8 {[%clk 0:02:19]}  Rxc8 {[%clk 0:02:07]} 26. Rg1 {[%clk 0:02:20]}  h6 {[%clk 0:02:05]} 27. h4 {[%clk 0:02:20]}  Rg8 {[%clk 0:02:04]} 28. hxg5 {[%clk 0:02:19]}  hxg5 {[%clk 0:01:57]} 29. f4+ {[%clk 0:01:47]}  Kf6 {[%clk 0:01:55]} 30. Nf3 {[%clk 0:01:47]}  g4 {[%clk 0:01:46]} 31. Nd4 {[%clk 0:01:48]}  Rh8 {[%clk 0:01:40]} 32. Rg2 {[%clk 0:01:44]}  Rh1 {[%clk 0:01:39]} 33. f5 {[%clk 0:01:37]}  Bxf5 {[%clk 0:01:18]} 34. Rf2 {[%clk 0:01:37]}  Rh5 {[%clk 0:01:19]} 35. Rf4 {[%clk 0:01:38]}  g3 {[%clk 0:00:40]} 36. Kf3 {[%clk 0:01:12]}  Ke5 {[%clk 0:00:38]} 37. Kxg3 {[%clk 0:01:07]}  Be4 {[%clk 0:00:30]} 38. Nf3+ {[%clk 0:00:55]}  Kd6 {[%clk 0:00:20]} 39. Nd2 {[%clk 0:00:47]}  Rg5+ {[%clk 0:00:16]} 40. Kh4 {[%clk 0:00:47]}  Rg2 {[%clk 0:00:15]} 41. Nxe4+ {[%clk 0:00:43]}  dxe4 {[%clk 0:00:16]} 42. Rxe4 {[%clk 0:00:40]}  Rxb2 {[%clk 0:00:16]} 43. Kg4 {[%clk 0:00:41]}  b5 {[%clk 0:00:14]} 44. a4 {[%clk 0:00:39]}  b4 {[%clk 0:00:14]} 45. Kf3 {[%clk 0:00:40]}  a5 {[%clk 0:00:14]} 46. Rd4+ {[%clk 0:00:39]}  Ke5 {[%clk 0:00:13]} 47. Re4+ {[%clk 0:00:40]}  Kd5 {[%clk 0:00:13]} 48. Rd4+ {[%clk 0:00:40]}  Kc5 {[%clk 0:00:13]} 49. Ke4 {[%clk 0:00:40]}  Ra2 {[%clk 0:00:13]} 50. Kd3 {[%clk 0:00:38]}  Ra3+ {[%clk 0:00:13]} 51. Kd2 {[%clk 0:00:36]}  Rxa4 {[%clk 0:00:14]} 52. Rd8 {[%clk 0:00:35]}  Ra3 {[%clk 0:00:13]} 53. e4 {[%clk 0:00:35]}  Kc6 {[%clk 0:00:10]} 54. e5 {[%clk 0:00:34]}  Kc7 {[%clk 0:00:10]} 55. Rd4 {[%clk 0:00:33]}  Rh3 {[%clk 0:00:09]} 56. Rd5 {[%clk 0:00:30]}  a4 {[%clk 0:00:08]} 57. Rd4 {[%clk 0:00:30]}  b3 {[%clk 0:00:03]} 58. Rxa4 {[%clk 0:00:29]}  Kd7 {[%clk 0:00:03]} 59. Rb4 {[%clk 0:00:26]}  Ke6 {[%clk 0:00:03]} 60. Rb5 {[%clk 0:00:26]}  Rh5 {[%clk 0:00:03]} 61. Rb6+ {[%clk 0:00:24]}  Ke7 {[%clk 0:00:03]} 62. e6 {[%clk 0:00:23]}  Rh6 {[%clk 0:00:03]} 63. Kc3 {[%clk 0:00:23]}  Rxe6 {[%clk 0:00:03]} 64. Rb7+ {[%clk 0:00:23]}  Kf6 {[%clk 0:00:03]} 65. Rxb3 {[%clk 0:00:24]}  Re3+ {[%clk 0:00:03]} 66. Kc4 {[%clk 0:00:24]}  Rxb3 {[%clk 0:00:04]} 67. Kxb3 {[%clk 0:00:25]} 1/2-1/2


[Site "https://www.chess.com"]

[Event "Titled Tuesday Blitz April 4 Early 2023"]
[White "Thiel, Thomas"]
[Black "Lach, Aleksandra"]
[WhiteFideId "4615964"]
[BlackFideId "1134299"]
[WhiteElo "2222"]
[BlackElo "2111"]
[Result "0-1"]
[Round "04"]
[TimeControl "180+2"]
[Date "2023.04.04"]
[WhiteClock "0:00:01"]
[BlackClock "0:00:48"]

1. e4 {[%clk 0:03:00]}  c5 {[%clk 0:02:59]} 2. Nc3 {[%clk 0:02:59]}  a6 {[%clk 0:02:57]} 3. Nge2 {[%clk 0:02:57]}  e5 {[%clk 0:02:50]} 4. Nd5 {[%clk 0:02:54]}  Nf6 {[%clk 0:02:48]} 5. Nec3 {[%clk 0:02:53]}  d6 {[%clk 0:02:40]} 6. d3 {[%clk 0:02:46]}  Be7 {[%clk 0:02:36]} 7. Nxe7 {[%clk 0:02:43]}  Qxe7 {[%clk 0:02:36]} 8. Bg5 {[%clk 0:02:39]}  Be6 {[%clk 0:02:36]} 9. g3 {[%clk 0:02:38]}  Nbd7 {[%clk 0:02:36]} 10. Bg2 {[%clk 0:02:37]}  O-O {[%clk 0:02:36]} 11. O-O {[%clk 0:02:35]}  b5 {[%clk 0:02:36]} 12. f4 {[%clk 0:02:30]}  b4 {[%clk 0:02:36]} 13. Nd5 {[%clk 0:02:13]}  Bxd5 {[%clk 0:02:36]} 14. exd5 {[%clk 0:02:14]}  h6 {[%clk 0:02:36]} 15. fxe5 {[%clk 0:02:10]}  Qxe5 {[%clk 0:02:28]} 16. Bf4 {[%clk 0:02:08]}  Qd4+ {[%clk 0:02:28]} 17. Kh1 {[%clk 0:02:05]}  Ne5 {[%clk 0:02:22]} 18. Qe1 {[%clk 0:01:09]}  Rae8 {[%clk 0:02:16]} 19. c3 {[%clk 0:00:36]}  bxc3 {[%clk 0:02:15]} 20. Qxc3 {[%clk 0:00:33]}  Qa4 {[%clk 0:01:49]} 21. b3 {[%clk 0:00:31]}  Qb5 {[%clk 0:01:46]} 22. d4 {[%clk 0:00:30]}  cxd4 {[%clk 0:01:34]} 23. Qxd4 {[%clk 0:00:31]}  Nfd7 {[%clk 0:01:22]} 24. Bh3 {[%clk 0:00:28]}  f5 {[%clk 0:01:14]} 25. Rae1 {[%clk 0:00:23]}  Rf6 {[%clk 0:01:07]} 26. Bxe5 {[%clk 0:00:21]}  dxe5 {[%clk 0:01:07]} 27. Qc4 {[%clk 0:00:21]}  Qxc4 {[%clk 0:01:00]} 28. bxc4 {[%clk 0:00:22]}  g6 {[%clk 0:01:01]} 29. Rb1 {[%clk 0:00:16]}  Rc8 {[%clk 0:01:00]} 30. Rfc1 {[%clk 0:00:13]}  Rb6 {[%clk 0:00:58]} 31. Bf1 {[%clk 0:00:10]}  Kf8 {[%clk 0:00:53]} 32. a4 {[%clk 0:00:04]}  a5 {[%clk 0:00:52]} 33. Rb5 {[%clk 0:00:02]}  Ke7 {[%clk 0:00:52]} 34. c5 {[%clk 0:00:01]}  Rxb5 {[%clk 0:00:50]} 35. d6+ {[%clk 0:00:01]}  Kd8 {[%clk 0:00:48]} 0-1


[Site "https://www.chess.com"]

[Event "Titled Tuesday Blitz April 4 Early 2023"]
[White "Mikhaylova, Irina"]
[Black "Melikhov, Evgeny V."]
[WhiteFideId "4109040"]
[BlackFideId "4122046"]
[WhiteElo "1975"]
[BlackElo "2158"]
[Result "0-1"]
[Round "04"]
[TimeControl "180+2"]
[Date "2023.04.04"]
[WhiteClock "0:00:11"]
[BlackClock "0:00:18"]

1. d4 {[%clk 0:03:00]}  Nf6 {[%clk 0:02:59]} 2. Nf3 {[%clk 0:03:01]}  d5 {[%clk 0:02:59]} 3. c4 {[%clk 0:03:01]}  e6 {[%clk 0:02:59]} 4. cxd5 {[%clk 0:03:01]}  exd5 {[%clk 0:02:59]} 5. Nc3 {[%clk 0:03:02]}  Bb4 {[%clk 0:02:59]} 6. Bg5 {[%clk 0:03:02]}  h6 {[%clk 0:02:59]} 7. Bxf6 {[%clk 0:03:02]}  Qxf6 {[%clk 0:03:00]} 8. Rc1 {[%clk 0:03:03]}  O-O {[%clk 0:02:54]} 9. a3 {[%clk 0:03:02]}  Bxc3+ {[%clk 0:02:54]} 10. Rxc3 {[%clk 0:03:02]}  c6 {[%clk 0:02:52]} 11. e3 {[%clk 0:03:03]}  Bf5 {[%clk 0:02:50]} 12. Bd3 {[%clk 0:03:03]}  Nd7 {[%clk 0:02:45]} 13. Bxf5 {[%clk 0:03:02]}  Qxf5 {[%clk 0:02:44]} 14. O-O {[%clk 0:03:03]}  Nf6 {[%clk 0:02:35]} 15. b4 {[%clk 0:03:01]}  Ne4 {[%clk 0:02:32]} 16. Rb3 {[%clk 0:02:57]}  a6 {[%clk 0:02:28]} 17. Qc2 {[%clk 0:02:56]}  Qh5 {[%clk 0:02:13]} 18. Qd1 {[%clk 0:02:50]}  Rae8 {[%clk 0:02:09]} 19. Ne5 {[%clk 0:02:47]}  Qf5 {[%clk 0:01:54]} 20. Qc2 {[%clk 0:02:34]}  f6 {[%clk 0:01:48]} 21. Nf3 {[%clk 0:02:26]}  Qh5 {[%clk 0:01:39]} 22. Qd1 {[%clk 0:02:22]}  f5 {[%clk 0:01:27]} 23. Ne5 {[%clk 0:02:18]}  Qxd1 {[%clk 0:01:26]} 24. Rxd1 {[%clk 0:02:18]}  f4 {[%clk 0:01:26]} 25. f3 {[%clk 0:01:16]}  Nd6 {[%clk 0:01:24]} 26. Ng6 {[%clk 0:01:15]}  fxe3 {[%clk 0:01:22]} 27. Nxf8 {[%clk 0:01:15]}  Kxf8 {[%clk 0:01:22]} 28. Re1 {[%clk 0:01:10]}  Nc4 {[%clk 0:01:22]} 29. Rd3 {[%clk 0:00:54]}  b5 {[%clk 0:01:20]} 30. Kf1 {[%clk 0:00:53]}  a5 {[%clk 0:01:17]} 31. bxa5 {[%clk 0:00:44]}  Ra8 {[%clk 0:01:16]} 32. Rexe3 {[%clk 0:00:43]}  Nxe3+ {[%clk 0:01:15]} 33. Rxe3 {[%clk 0:00:43]}  Rxa5 {[%clk 0:01:15]} 34. Rc3 {[%clk 0:00:40]}  Ra6 {[%clk 0:01:13]} 35. Ke2 {[%clk 0:00:41]}  Ke7 {[%clk 0:01:13]} 36. Kd2 {[%clk 0:00:41]}  Kd6 {[%clk 0:01:13]} 37. Kc2 {[%clk 0:00:42]}  Ra8 {[%clk 0:01:12]} 38. Re3 {[%clk 0:00:41]}  c5 {[%clk 0:01:03]} 39. dxc5+ {[%clk 0:00:40]}  Kxc5 {[%clk 0:01:03]} 40. Re7 {[%clk 0:00:40]}  g5 {[%clk 0:00:59]} 41. Rc7+ {[%clk 0:00:35]}  Kd4 {[%clk 0:00:58]} 42. Rc3 {[%clk 0:00:25]}  Ra4 {[%clk 0:00:57]} 43. Rb3 {[%clk 0:00:24]}  Kc5 {[%clk 0:00:52]} 44. Rc3+ {[%clk 0:00:23]}  Rc4 {[%clk 0:00:40]} 45. Kd3 {[%clk 0:00:22]}  d4 {[%clk 0:00:29]} 46. Rb3 {[%clk 0:00:21]}  Rc1 {[%clk 0:00:26]} 47. Rb2 {[%clk 0:00:12]}  Rc3+ {[%clk 0:00:26]} 48. Ke4 {[%clk 0:00:13]}  Re3+ {[%clk 0:00:24]} 49. Kf5 {[%clk 0:00:12]}  Rxa3 {[%clk 0:00:24]} 50. Rc2+ {[%clk 0:00:13]}  Rc3 {[%clk 0:00:24]} 51. Rd2 {[%clk 0:00:13]}  d3 {[%clk 0:00:23]} 52. Ke4 {[%clk 0:00:13]}  Kc4 {[%clk 0:00:23]} 53. g3 {[%clk 0:00:13]}  b4 {[%clk 0:00:23]} 54. f4 {[%clk 0:00:14]}  gxf4 {[%clk 0:00:20]} 55. gxf4 {[%clk 0:00:14]}  b3 {[%clk 0:00:20]} 56. f5 {[%clk 0:00:15]}  Rc1 {[%clk 0:00:18]} 57. Rxd3 {[%clk 0:00:11]}  Re1+ {[%clk 0:00:18]} 0-1


[Site "https://www.chess.com"]